Workbook

Sheet Mohr's Circle
A1: Mohr's Circle Generator
A2: Matt Martino and Alec Escamilla
A3: CE 270 Term Project | H3: =($B$5+$B$6)/2 + ($B$5-$B$6)/2*COS($E$6) + $B$7*SIN($E$6) -> 15000 | I3: =$C$5 -> psi
B5: 15000 | C5: psi | D5: Choose | E5: 0 | H5: =($B$5+$B$6)/2 - ($B$5-$B$6)/2*COS($E$6) - $B$7*SIN($E$6) -> 5000 | I5: =$C$5 -> psi
B6: 5000 | C6: =$C$5 -> psi | D6: Radians | E6: =$E$5*2*PI()/180 -> 0
B7: 4000 | C7: =$C$5 -> psi | H7: =- ($B$5-$B$6)/2*SIN($E$6) + $B$7*COS($E$6) -> 4000 | I7: =$C$5 -> psi
B9: =($B$5+$B$6)/2 -> 10000 | C9: =$C$5 -> psi | H9: =$B$9+$B$10 -> 16403.12424 | I9: =$C$5 -> psi
A10: Radius | B10: =SQRT((($B$5-$B$6)/2)^2 + $B$7^2) -> 6403.124237 | H10: =$B$9-$B$10 -> 3596.875763 | I10: =$C$5 -> psi
A12: Some points on your Circle | H12: =ASIN($B$7/$B$10)/2 * 180/(PI()) -> 19.32990413 | I12: degrees
A14: Center | C14: =($B$5+$B$6)/2 -> 10000 | D14: 0
B15: Radians
A16: 0 | B16: =A16*PI()/180 -> 0 | C16: =($B$5+$B$6)/2 + ($B$5-$B$6)/2*COS(B16) + $B$7*SIN(B16) -> 15000 | D16: =- ($B$5-$B$6)/2*SIN(B16) + $B$7*COS(B16) -> 4000
A17: 10 | B17: 0.1745329252 | C17: =($B$5+$B$6)/2 + ($B$5-$B$6)/2*COS(B17) + $B$7*SIN(B17) -> 15618.63148 | D17: =- ($B$5-$B$6)/2*SIN(B17) + $B$7*COS(B17) -> 3070.990124
A18: 20 | B18: 0.3490658504 | C18: =($B$5+$B$6)/2 + ($B$5-$B$6)/2*COS(B18) + $B$7*SIN(B18) -> 16066.54368 | D18: =- ($B$5-$B$6)/2*SIN(B18) + $B$7*COS(B18) -> 2048.669767
A19: 30 | B19: 0.5235987756 | C19: 16330.12702 | D19: 964.1016151
A20: 40 | B20: 0.6981317008 | C20: 16401.37265 | D20: -149.760276
A21: 50 | B21: 0.872664626 | C21: 16278.11582 | D21: -1259.071777
A22: 60 | B22: 1.047197551 | C22: 15964.10162 | D22: -2330.127019
A23: 70 | B23: 1.221730476 | C23: 15468.8712 | D23: -3330.382531
A24: 80 | B24: 1.396263402 | C24: 14807.4719 | D24: -4229.446054
A25: 90 | B25: 1.570796327 | C25: 14000 | D25: -5000
A26: 100 | B26: 1.745329252 | C26: 13070.99012 | D26: -5618.631476
A27: 110 | B27: 1.919862177 | C27: 12048.66977 | D27: -6066.543677
A28: 120 | B28: 2.094395102 | C28: 10964.10162 | D28: -6330.127019
A29: 130 | B29: 2.268928028 | C29: 9850.239724 | D29: -6401.372654
A30: 140 | B30: 2.443460953 | C30: 8740.928223 | D30: -6278.115821
A31: 150 | B31: 2.617993878 | C31: 7669.872981 | D31: -5964.101615
A32: 160 | B32: 2.792526803 | C32: 6669.617469 | D32: -5468.8712
A33: 170 | B33: 2.967059728 | C33: 5770.553946 | D33: -4807.4719
A34: 180 | B34: 3.141592654 | C34: 5000 | D34: -4000
A35: 190 | B35: 3.316125579 | C35: 4381.368524 | D35: -3070.990124
A36: 200 | B36: 3.490658504 | C36: 3933.456323 | D36: -2048.669767
A37: 210 | B37: 3.665191429 | C37: 3669.872981 | D37: -964.1016151
A38: 220 | B38: 3.839724354 | C38: 3598.627346 | D38: 149.760276
A39: 230 | B39: 4.01425728 | C39: 3721.884179 | D39: 1259.071777
A40: 240 | B40: 4.188790205 | C40: 4035.898385 | D40: 2330.127019
A41: 250 | B41: 4.36332313 | C41: 4531.1288 | D41: 3330.382531
A42: 260 | B42: 4.537856055 | C42: 5192.5281 | D42: 4229.446054
A43: 270 | B43: 4.71238898 | C43: 6000 | D43: 5000
A44: 280 | B44: 4.886921906 | C44: 6929.009876 | D44: 5618.631476
A45: 290 | B45: 5.061454831 | C45: 7951.330233 | D45: 6066.543677
A46: 300 | B46: 5.235987756 | C46: 9035.898385 | D46: 6330.127019
A47: 310 | B47: 5.410520681 | C47: 10149.76028 | D47: 6401.372654
A48: 320 | B48: 5.585053606 | C48: 11259.07178 | D48: 6278.115821
A49: 330 | B49: 5.759586532 | C49: 12330.12702 | D49: 5964.101615
A50: 340 | B50: 5.934119457 | C50: 13330.38253 | D50: 5468.8712
A51: 350 | B51: 6.108652382 | C51: 14229.44605 | D51: 4807.4719
A52: 360 | B52: 6.283185307 | C52: 15000 | D52: 4000

Sheet Help
A1: Have you ever wanted an easy way to calculate stresses acting on a stress element? Have you wanted to accurately know what the stress is at any given angle? The Mohr's Circle Generator will allow you to know the exact stresses acting on your stress element. So instead of stressing out about the mechanics of materials, enjoy the ease of this spreadsheet. It's simple. Just input the values for sigma x, sigma y, and tau xy then adjust the angle that you wish to rotate your stress element. You will automatically get the stresses at the new location and the principal stresses of your stress element along with the angle needed to get there. You can also adjust units my editing cell C5 (a tip will pop up when you select the cell). It's as easy as that.
A3: *Important Note* Sigma 1 always demotes the far right of the circle and sigma 2 the left. Also, tau max is the radius value.
